fUSD/lending_fUSD_20260401
["ID","MTS","AMOUNT","RATE_DAILY","PERIOD"]
[419188871,1775013043245,-3178.66,0.00016282,2]
[419188872,1775013043255,-495.62,0.00016325,2]
[419188873,1775013043264,-150.0,0.000164,2]
[419188874,1775013043274,-213.0,0.000164,2]
[419188875,1775013043283,-200.11052162,0.000164,2]
[419188876,1775013043293,-500.0,0.00016438,2]
[419188877,1775013043303,-500.0,0.00016438,2]
[419188878,1775013043312,-289.40261194,0.00016438,2]
[419188879,1775013043322,-596.55,0.00016438,2]
[419188880,1775013043331,-3178.66,0.0001667,2]
[419188881,1775013043340,-157.21,0.00016712,2]
[419188882,1775013043350,-527.2879,0.000169,27]
[419188883,1775013043359,-504.0,0.0001697,5]
[419188884,1775013043369,-1560.46,0.00016976,30]
[419188885,1775013043379,-666.0,0.00016999,2]
[419188886,1775013043388,-91105.32015854,0.00017,2]
[419188887,1775013043398,-3178.66,0.00017058,2]
[419188888,1775013043407,-3553.73822519,0.00017111,2]
[419188889,1775013043417,-1049.528658,0.00017143,7]
[419188890,1775013043426,-936.890889,0.00017143,7]
[419188891,1775013043436,-6245.0,0.00017712,2]
[419188892,1775013043445,-1783.38,0.00017734,30]
[419188893,1775013043455,-805.6,0.00017944,2]
[419188894,1775013043464,-1000.77125488,0.00018,2]
[419188895,1775013043474,-1096.7224638,0.00018061,2]
[419188896,1775013043483,-155.52529498,0.00018107,2]
[419188897,1775013043493,-504.0,0.00018256,6]
[419188898,1775013043503,-168.29,0.00018273,2]
[419188899,1775013043514,-678.0147,0.000183,32]
[419188900,1775013043523,-883.13,0.00018406,2]
[419188901,1775013043533,-2006.3,0.00018493,30]
[419188902,1775013043544,-161.36,0.00018713,2]
[419188903,1775013043554,-2000.0,0.0001876,2]
[419188904,1775013043564,-210.95,0.0001876,2]
[419188905,1775013043573,-164.36,0.0001876,2]
[419188906,1775013043583,-3000.0,0.00019178,2]
[419188907,1775013043592,-150.1102686,0.000192,2]
[419188908,1775013043602,-2229.22,0.00019251,30]
[419188909,1775013043611,-376.753877,0.00019379,7]
[419188910,1775013043621,-805.6,0.0001945,2]
[419188911,1775013043631,-3553.73822519,0.00019457,2]
[419188912,1775013043640,-374.83,0.00019533,2]
[419188913,1775013043649,-504.0,0.00019543,7]
[419188914,1775013043658,-871.8272,0.000196,37]
[419188915,1775013043668,-150.0,0.0002,2]
[419188916,1775013043677,-150.0,0.0002,2]
[419188917,1775013043686,-835.0,0.0002,2]
[419188918,1775013043696,-297.81404585,0.0002,20]
[419188919,1775013043705,-26630.13333748,0.0002,2]
[419188920,1775013043715,-825.0,0.0002,30]
[419188921,1775013043725,-161.36,0.00020049,2]
[419188922,1775013043735,-1398.0,0.00020191,10]
[419188923,1775013043745,-795.24506722,0.00020349,2]
[419188924,1775013043754,-2000.0,0.00020495,2]
[419188925,1775013043764,-159.23,0.00020545,2]
[419188926,1775013043774,-504.0,0.00020829,8]
[419188927,1775013043783,-150.68680903,0.000209,30]
[419188928,1775013043794,-805.6,0.00020955,2]
[419188929,1775013043803,-501.0,0.00021,2]
[419188930,1775013043812,-1121.0416,0.00021,42]
[419188931,1775013043821,-196.68,0.00021344,2]
[419188932,1775013043831,-161.36,0.00021386,2]
[419188933,1775013043841,-2000.0,0.000214,2]
[419188934,1775013043850,-414.88,0.00021458,2]
[419188935,1775013043861,-500.0,0.0002172,2]
[419188937,1775013043870,-3553.73822519,0.00021802,2]
[419188939,1775013043879,-414.88,0.00021994,2]
[419188940,1775013043888,-500.0,0.00022,2]
[419188941,1775013043898,-1133.0,0.00022,2]
[419188942,1775013043908,-1101.0,0.00022,2]
[419188943,1775013043918,-200.0,0.00022,3]
[419188944,1775013043928,-5328.0,0.00022,2]
[419188945,1775013043938,-1283.0,0.00022,2]
[419188946,1775013043947,-599.0,0.00022,2]
[419188947,1775013043956,-270.8,0.00022,30]
[419188948,1775013043965,-504.0,0.00022115,9]
[419188949,1775013043975,-30000.0,0.00022132,2]
[419188950,1775013043985,-180.02150181,0.00022304,2]
[419188951,1775013043995,-159.23,0.00022351,2]
[419188952,1775013044005,-432.91679296,0.00022372,2]
[419188953,1775013044015,-1441.4946,0.000224,47]
[419188954,1775013044024,-825.0,0.00022436,30]
[419188955,1775013044034,-805.6,0.00022461,2]
[419188956,1775013044043,-414.89584708,0.00022531,2]
[419188957,1775013044053,-28228.98775209,0.000226,2]
[419188958,1775013044063,-161.36,0.00022722,2]
[419188959,1775013044072,-999.71960539,0.00022912,2]
[419188960,1775013044082,-500.0,0.00022932,2]
[419188961,1775013044092,-500.0,0.00023,2]
[419188962,1775013044101,-1133.0,0.00023,2]
[419188963,1775013044110,-1101.0,0.00023,2]
[419188964,1775013044119,-5328.0,0.00023,2]
[419188965,1775013044129,-1283.0,0.00023,2]
[419188966,1775013044138,-599.0,0.00023,2]
[419188967,1775013044149,-2010.55098616,0.00023,2]
[419188968,1775013044158,-2000.0,0.00023057,2]
[419188969,1775013044168,-5727.00358239,0.00023249,2]
[419188970,1775013044177,-318.44653029,0.00023285,2]
[419188971,1775013044186,-374.83,0.00023397,2]
[419188972,1775013044195,-504.0,0.00023402,10]
[419188973,1775013044205,-69715.0,0.000235,2]
[419188974,1775013044214,-933.381,0.00023632,2]
[419188975,1775013044223,-1223.021,0.00023632,2]
[419188976,1775013044233,-416.187,0.00023667,2]
[419188977,1775013044242,-6016.0,0.00023667,2]
[419188978,1775013044253,-500.53544313,0.00023717,2]
[419188979,1775013044263,-694.43072499,0.00023799,2]
[419188980,1775013044272,-1853.5502,0.000238,52]
[419188981,1775013044282,-5534.0,0.000239,3]
[419188982,1775013044291,-805.6,0.00023966,2]
[419188983,1775013044300,-500.0,0.00024,2]
[419188984,1775013044310,-1133.0,0.00024,2]
[419188985,1775013044319,-1101.0,0.00024,2]
[419188986,1775013044328,-5328.0,0.00024,2]
[419188987,1775013044338,-1283.0,0.00024,2]
[419188988,1775013044347,-599.0,0.00024,2]
[419188989,1775013044356,-161.36,0.00024059,2]
[419188990,1775013044366,-3553.73822519,0.00024148,2]
[419188991,1775013044375,-150.0,0.00024267,2]
[419188992,1775013044385,-150.0,0.00024267,2]
[419188993,1775013044394,-193.433,0.00024267,2]
[419188994,1775013044404,-166.012,0.00024267,2]
[419188995,1775013044413,-214.791,0.00024267,2]
[419188996,1775013044423,-250.0,0.00024267,2]
[419188997,1775013044432,-239.15,0.00024267,2]
[419188998,1775013044442,-179.0,0.00024267,2]
[419188999,1775013044452,-1351.985,0.00024267,2]
[419189000,1775013044462,-3519.0,0.00024267,2]
[419189001,1775013044471,-1045.0,0.00024267,2]
[419189002,1775013044480,-1263.0,0.00024267,2]
[419189003,1775013044490,-150.18,0.00024267,2]
[419189004,1775013044500,-5534.0,0.000243,5]
[419189005,1775013044511,-2846.31,0.00024584,2]
[419189006,1775013044521,-209.71215935,0.00024633,2]
[419189007,1775013044532,-159.23,0.00024654,2]
[419189008,1775013044542,-150.0,0.00024658,2]
[419189009,1775013044552,-504.0,0.00024688,12]
[419189010,1775013044561,-20629.80019668,0.00024781,7]
[419189011,1775013044571,-15621.26015249,0.00024781,7]
[419189012,1775013044580,-825.0,0.00024873,60]
[419189013,1775013044589,-151.0,0.00024897,7]
[419189014,1775013044598,-1400.0,0.000249,9]
[419189015,1775013044607,-176466.28934074,0.000249,2]
[419189016,1775013045956,-2147.54798916,0.000249,2]
[419189017,1775013045972,-641.97732631,0.000249,2]
[419189018,1775013046470,-739.0,0.00011894,2]
[419189019,1775013046480,-212.600796,0.00019379,7]
[419189020,1775013046493,-123.71901,0.00019379,7]
[419189021,1775013046503,-561.9298131,0.00023667,2]
[419189035,1775013047840,-28.18036041,0.00023667,2]
[419189036,1775013047854,-1878.88982649,0.00023667,2]
[419189037,1775013047865,-385660.61748179,0.000249,2]
[419189038,1775013047876,-250.03251549,0.0002495,2]
[419189039,1775013047885,-756.14813311,0.00024975,2]
[419189040,1775013047894,-500.0,0.00025,2]
[419189041,1775013047904,-1133.0,0.00025,2]
[419189042,1775013047913,-1101.0,0.00025,2]
[419189043,1775013047923,-5328.0,0.00025,2]
[419189044,1775013047932,-1283.0,0.00025,2]
[419189045,1775013047942,-599.0,0.00025,2]
[419189046,1775013047951,-172.0,0.00025,7]
[419189047,1775013047961,-150.0,0.00025,2]
[419189048,1775013047970,-2000.0,0.000251,2]
[419189049,1775013047979,-2000.0,0.000251,2]
[419189050,1775013047989,-2383.393,0.000252,57]
[419189051,1775013047999,-156.74,0.00025342,2]
[419189052,1775013048009,-161.36,0.00025396,2]
[419189053,1775013048018,-336.63917219,0.00025424,2]
[419189054,1775013048028,-805.6,0.00025472,2]
[419189055,1775013048037,-795.24506722,0.00025487,2]
[419189056,1775013048047,-265.89133936,0.000255,2]
[419189057,1775013048058,-1263.64446347,0.000255,2]
[419189058,1775013048068,-2000.0,0.00025619,2]
[419189059,1775013048078,-150.0,0.0002589,2]
[419189060,1775013048087,-151.0,0.00025915,2]
[419189061,1775013048097,-194.71896081,0.00025915,2]
[419189062,1775013048107,-504.0,0.00025974,13]
[419189063,1775013048127,-500.0,0.00026,2]
[419189064,1775013048137,-1133.0,0.00026,2]
[419189065,1775013048147,-1101.0,0.00026,2]
[419189066,1775013048156,-5328.0,0.00026,2]
[419189067,1775013048166,-1283.0,0.00026,2]
[419189068,1775013048175,-599.0,0.00026,2]
[419189069,1775013048185,-270.8,0.00026134,30]
[419189070,1775013048194,-3553.73822519,0.00026494,2]
[419189071,1775013048204,-3064.693,0.000266,62]
[419189072,1775013048213,-925.0,0.00026632,2]
[419189073,1775013048222,-1216.0,0.00026632,2]
[419189074,1775013048231,-415.0,0.00026667,2]
[419189075,1775013048240,-6016.0,0.00026667,2]
[419189076,1775013048250,-2469.0,0.00026667,2]
[419189077,1775013048260,-161.36,0.00026732,2]
[419189078,1775013048269,-1850.0,0.00026852,2]
[419189079,1775013048278,-1850.0,0.00026852,2]
[419189080,1775013048288,-1850.0,0.00026852,2]
[419189081,1775013048297,-1850.0,0.00026852,2]
[419189082,1775013048306,-1850.0,0.00026852,2]
[419189083,1775013048316,-1850.0,0.00026852,2]
[419189084,1775013048325,-1850.0,0.00026852,2]
[419189085,1775013048334,-1850.0,0.00026852,2]
[419189086,1775013048343,-1850.0,0.00026852,2]
[419189087,1775013048352,-1442.0,0.00026852,2]
[419189088,1775013048362,-805.6,0.00026978,2]
[419189089,1775013048374,-800.0,0.00026986,120]
[419189090,1775013048389,-800.0,0.00026986,120]
[419189091,1775013048403,-150.0,0.00027,2]
[419189092,1775013048415,-519.08733496,0.00027,2]
[419189093,1775013048428,-1134.37979984,0.00027,2]
[419189094,1775013048441,-1111.32774423,0.00027,2]
[419189095,1775013048453,-5342.67305915,0.00027,2]
[419189096,1775013048463,-1292.62658029,0.00027,2]
[419189097,1775013048474,-615.2014381,0.00027,2]
[419189098,1775013048486,-20000.0,0.00027,2]
[419189099,1775013048500,-150.0,0.00027185,2]
[419189100,1775013048512,-1588.0,0.00027233,5]
[419189101,1775013048524,-1269.0,0.00027233,5]
[419189102,1775013048536,-504.0,0.00027261,14]
[419189103,1775013048548,-150.0,0.00027267,2]
[419189104,1775013048560,-150.0,0.00027267,2]
[419189105,1775013048573,-150.0,0.00027267,2]
[419189106,1775013048585,-1346.0,0.00027267,2]
[419189107,1775013048598,-3519.0,0.00027267,2]
[419189108,1775013048612,-1045.0,0.00027267,2]
[419189109,1775013048624,-1263.0,0.00027267,2]
[419189110,1775013048636,-285.40491142,0.000273,30]
[419189111,1775013048648,-285.40491141,0.000273,30]
[419189112,1775013048660,-825.0,0.00027309,60]
[419189113,1775013048673,-450.66053804,0.00027397,2]
[419189114,1775013048684,-300.0,0.00027397,2]
[419189115,1775013048697,-1000.0,0.00027397,20]
[419189116,1775013048710,-330.45036883,0.00027397,2]
[419189117,1775013048723,-11351.37,0.00027397,10]
[419189118,1775013048735,-432.41844996,0.000275,2]
[419189119,1775013048748,-249.88,0.00027645,2]
[419189120,1775013048760,-2000.0,0.00027694,2]
[419189121,1775013048771,-2000.0,0.00027694,2]
[419189122,1775013048784,-2000.0,0.00027694,2]
[419189123,1775013048796,-2000.0,0.00027694,2]
[419189124,1775013048809,-2000.0,0.00027694,2]
[419189125,1775013048822,-2000.0,0.00027694,2]
[419189126,1775013048834,-2000.0,0.00027694,2]
[419189127,1775013048847,-2000.0,0.00027694,2]
[419189128,1775013048862,-2000.0,0.00027694,2]
[419189129,1775013048872,-2000.0,0.00027694,2]
[419189130,1775013048884,-196.67404292,0.00027865,2]
[419189131,1775013048896,-3940.7445,0.00028,67]
[419189132,1775013048908,-249.88,0.0002803,2]
[419189133,1775013048922,-161.36,0.00028069,2]
[419189134,1775013048935,-199.62462886,0.00028137,120]
[419189135,1775013048947,-459.51,0.00028137,120]
[419189136,1775013048959,-2000.0,0.00028181,2]
[419189137,1775013048972,-1200.0,0.00028226,2]
[419189138,1775013048983,-1200.0,0.00028226,2]
[419189139,1775013048993,-1200.0,0.00028226,2]
[419189140,1775013049003,-1200.0,0.00028226,2]
[419189141,1775013049015,-1200.0,0.00028226,2]
[419189142,1775013049027,-1200.0,0.00028226,2]
[419189143,1775013049039,-1200.0,0.00028226,2]
[419189144,1775013049051,-1200.0,0.00028226,2]
[419189145,1775013049060,-1200.0,0.00028226,2]
[419189146,1775013049072,-730.0,0.00028226,2]
[419189147,1775013049084,-2000.0,0.00028379,2]
[419189148,1775013049096,-2000.0,0.00028379,2]
[419189149,1775013049109,-2000.0,0.00028379,2]
[419189150,1775013049121,-2000.0,0.00028379,2]
[419189151,1775013049132,-2000.0,0.00028379,2]
[419189152,1775013049144,-2000.0,0.00028379,2]
[419189153,1775013049156,-2000.0,0.00028379,2]
[419189154,1775013049167,-2000.0,0.00028379,2]
[419189155,1775013049179,-2000.0,0.00028379,2]
[419189156,1775013049190,-2000.0,0.00028379,2]
[419189157,1775013049201,-249.88,0.00028415,2]
[419189158,1775013049214,-805.6,0.00028483,2]
[419189159,1775013049227,-3082.2118754,0.00028499,2]
[419189160,1775013049239,-150.0,0.00028544,2]
[419189161,1775013049251,-504.0,0.00028547,15]
[419189162,1775013049263,-766.67,0.00028652,7]
[419189163,1775013049274,-500.0,0.00028767,120]
[419189164,1775013049285,-500.0,0.00028767,120]
[419189165,1775013049295,-500.0,0.00028767,120]
[419189166,1775013049305,-500.0,0.00028767,120]
[419189167,1775013049316,-500.0,0.00028767,120]
[419189168,1775013049332,-500.0,0.00028767,120]
[419189169,1775013049343,-204.78266092,0.00028767,120]
[419189170,1775013049353,-2000.0,0.000288,2]
[419189171,1775013049364,-2000.0,0.000288,2]
[419189172,1775013049376,-3553.73822519,0.0002884,2]
[419189173,1775013049386,-3323.6849908,0.00028915,2]
[419189174,1775013049397,-20113.8192083,0.00028915,2]
[419189175,1775013049408,-1444.0,0.00029041,120]
[419189176,1775013049441,-661391.2837813,0.0002925,2]
[419189177,1775013049453,-5408.5350479,0.0002925,2]
[419189178,1775013049466,-353102.5072935,0.0002925,2]
[419189179,1775013049479,-1608.986935,0.0002925,7]
[419189180,1775013049491,-1608.986935,0.0002925,7]
[419189181,1775013049503,-1608.986935,0.0002925,7]
[419189182,1775013049515,-763.385097,0.0002925,7]
[419189183,1775013049528,-1608.986935,0.0002925,7]
[419189184,1775013049540,-763.385097,0.0002925,7]
[419189185,1775013049552,-755.641847,0.0002925,7]
[419189186,1775013049564,-219.010236,0.0002925,7]
[419189187,1775013049576,-755.641847,0.0002925,7]
[419189188,1775013049588,-201.971464,0.0002925,7]
[419189189,1775013049601,-219.010236,0.0002925,7]
[419189190,1775013049613,-1566.277104,0.0002925,7]
[419189191,1775013049624,-755.641847,0.0002925,7]
[419189192,1775013049636,-598.774171,0.0002925,7]
[419189193,1775013049649,-201.971464,0.0002925,7]
[419189194,1775013049661,-219.010236,0.0002925,7]
[419189195,1775013049672,-1566.277104,0.0002925,7]
[419189196,1775013049684,-755.641847,0.0002925,7]
[419189197,1775013049696,-598.774171,0.0002925,7]
[419189198,1775013049707,-219.010236,0.0002925,7]
[419189199,1775013049720,-201.971464,0.0002925,7]
[419189200,1775013049732,-1566.277104,0.0002925,7]
[419189201,1775013049743,-201.971464,0.0002925,7]
[419189202,1775013049755,-1131.308331,0.0002925,7]
[419189203,1775013049767,-1566.277104,0.0002925,7]
[419189204,1775013049778,-1131.308331,0.0002925,7]
[419189205,1775013049791,-299.440004,0.0002925,7]
[419189206,1775013049804,-1131.308331,0.0002925,7]
[419189207,1775013049817,-763.385097,0.0002925,7]
[419189208,1775013049830,-299.440004,0.0002925,7]
[419189209,1775013049843,-1131.308331,0.0002925,7]
[419189210,1775013049856,-763.385097,0.0002925,7]
[419189211,1775013049868,-299.440004,0.0002925,7]
[419189212,1775013049880,-299.440004,0.0002925,7]
[419189213,1775013049892,-151.0,0.0002925,7]
[419189214,1775013049904,-151.0,0.0002925,7]
[419189215,1775013049915,-151.0,0.0002925,7]
[419189216,1775013049928,-1936.333589,0.0002925,7]
[419189217,1775013049939,-598.774171,0.0002925,7]
[419189218,1775013049952,-151.0,0.0002925,7]
[419189219,1775013049963,-1936.333589,0.0002925,7]
[419189220,1775013049975,-598.774171,0.0002925,7]
[419189221,1775013049986,-1936.333589,0.0002925,7]
[419189222,1775013049997,-178.645392,0.0002925,7]
[419189223,1775013050008,-1936.333589,0.0002925,7]
[419189224,1775013050019,-151.0,0.0002925,7]
[419189225,1775013050030,-178.645392,0.0002925,7]
[419189226,1775013050041,-178.645392,0.0002925,7]
[419189227,1775013050052,-178.645392,0.0002925,7]
[419189228,1775013050063,-329.527585,0.0002925,7]
[419189229,1775013050073,-329.527585,0.0002925,7]
[419189230,1775013050084,-873.524236,0.0002925,7]
[419189231,1775013050095,-329.527585,0.0002925,7]
[419189232,1775013050107,-873.524236,0.0002925,7]
[419189233,1775013050117,-329.527585,0.0002925,7]
[419189234,1775013050128,-873.524236,0.0002925,7]
[419189235,1775013050140,-873.524236,0.0002925,7]
[419189236,1775013050151,-2633.694908,0.0002925,7]
[419189237,1775013050162,-3504.13553,0.0002925,7]
[419189238,1775013050173,-262.000422,0.0002925,7]
[419189239,1775013050184,-892.253268,0.0002925,7]
[419189240,1775013050195,-2633.694908,0.0002925,7]
[419189241,1775013050207,-1002.143556,0.0002925,7]
[419189242,1775013050217,-3504.13553,0.0002925,7]
[419189243,1775013050228,-262.000422,0.0002925,7]
[419189244,1775013050239,-892.253268,0.0002925,7]
[419189245,1775013050250,-839.001389,0.0002925,7]
[419189246,1775013050261,-151.0,0.0002925,7]
[419189247,1775013050272,-2633.694908,0.0002925,7]
[419189248,1775013050282,-1002.143556,0.0002925,7]
[419189249,1775013050293,-3504.13553,0.0002925,7]
[419189250,1775013050304,-262.000422,0.0002925,7]
[419189251,1775013050314,-892.253268,0.0002925,7]
[419189252,1775013050325,-839.001389,0.0002925,7]
[419189253,1775013050336,-2959.597666,0.0002925,7]
[419189254,1775013050346,-248.77608,0.0002925,7]
[419189255,1775013050357,-2633.694908,0.0002925,7]
[419189256,1775013050367,-175.599481,0.0002925,7]
[419189257,1775013050377,-262.000422,0.0002925,7]
[419189258,1775013050388,-3504.13553,0.0002925,7]
[419189259,1775013050399,-166.099322,0.0002925,7]
[419189260,1775013050410,-892.253268,0.0002925,7]
[419189261,1775013050421,-839.001389,0.0002925,7]
[419189262,1775013050431,-2959.597666,0.0002925,7]
[419189263,1775013050442,-175.599481,0.0002925,7]
[419189264,1775013050453,-151.0,0.0002925,7]
[419189265,1775013050464,-166.099322,0.0002925,7]
[419189266,1775013050475,-839.001389,0.0002925,7]
[419189267,1775013050485,-2959.597666,0.0002925,7]
[419189268,1775013050496,-3080.917359,0.0002925,7]
[419189269,1775013050506,-175.599481,0.0002925,7]
[419189270,1775013050517,-11991.582422,0.0002925,2]
[419189271,1775013050527,-151.0,0.0002925,7]
[419189272,1775013050538,-151.0,0.0002925,7]
[419189273,1775013050549,-151.0,0.0002925,7]
[419189274,1775013050560,-166.099322,0.0002925,7]
[419189275,1775013050570,-3253.849364,0.0002925,7]
[419189276,1775013050581,-2959.597666,0.0002925,7]
[419189277,1775013050592,-3080.917359,0.0002925,7]
[419189278,1775013050604,-175.599481,0.0002925,7]
[419189279,1775013050614,-11991.582422,0.0002925,2]
[419189280,1775013050624,-170.636045,0.0002925,7]
[419189281,1775013050634,-151.0,0.0002925,7]
[419189282,1775013050648,-1002.143556,0.0002925,7]
[419189283,1775013050658,-166.099322,0.0002925,7]
[419189284,1775013050671,-3253.849364,0.0002925,7]
[419189285,1775013050681,-3080.917359,0.0002925,7]
[419189286,1775013050692,-11991.582422,0.0002925,2]
[419189287,1775013050702,-170.636045,0.0002925,7]
[419189288,1775013050712,-1002.143556,0.0002925,7]
[419189289,1775013050723,-3253.849364,0.0002925,7]
[419189290,1775013050733,-3080.917359,0.0002925,7]
[419189291,1775013050745,-11991.582422,0.0002925,2]
[419189292,1775013050756,-170.636045,0.0002925,7]
[419189293,1775013050767,-528.346051,0.0002925,7]
[419189294,1775013050778,-3253.849364,0.0002925,7]
[419189295,1775013050789,-314.772131,0.0002925,7]
[419189296,1775013050800,-170.636045,0.0002925,7]
[419189297,1775013050810,-528.346051,0.0002925,7]
[419189298,1775013050821,-314.772131,0.0002925,7]
[419189299,1775013050832,-528.346051,0.0002925,7]
[419189300,1775013050843,-314.772131,0.0002925,7]
[419189301,1775013050855,-528.346051,0.0002925,7]
[419189302,1775013050867,-314.772131,0.0002925,7]
[419189303,1775013050878,-151.0,0.0002925,7]
[419189304,1775013050888,-151.0,0.0002925,7]
[419189305,1775013050899,-151.0,0.0002925,7]
[419189306,1775013050909,-151.0,0.0002925,7]
[419189307,1775013050919,-151.0,0.0002925,7]
[419189308,1775013050931,-151.0,0.0002925,7]
[419189309,1775013050941,-206.472759,0.0002925,7]
[419189310,1775013050951,-993.841162,0.0002925,7]
[419189311,1775013050961,-155.132928,0.0002925,7]
[419189312,1775013050971,-206.472759,0.0002925,7]
[419189313,1775013050982,-993.841162,0.0002925,7]
[419189314,1775013050992,-2349.593397,0.0002925,7]
[419189315,1775013051002,-151.0,0.0002925,7]
[419189316,1775013051013,-993.841162,0.0002925,7]
[419189317,1775013051023,-206.472759,0.0002925,7]
[419189318,1775013051033,-2349.593397,0.0002925,7]
[419189319,1775013051043,-151.0,0.0002925,7]
[419189320,1775013051053,-206.472759,0.0002925,7]
[419189321,1775013051064,-993.841162,0.0002925,7]
[419189322,1775013051074,-2349.593397,0.0002925,7]
[419189323,1775013051084,-151.0,0.0002925,7]
[419189324,1775013051095,-1036.720444,0.0002925,7]
[419189325,1775013051105,-2349.593397,0.0002925,7]
[419189326,1775013051115,-151.0,0.0002925,7]
[419189327,1775013051125,-1036.720444,0.0002925,7]
[419189328,1775013051136,-1517.926247,0.0002925,7]
[419189329,1775013051147,-1036.720444,0.0002925,7]
[419189330,1775013051157,-402.472625,0.0002925,7]
[419189331,1775013051169,-1036.720444,0.0002925,7]
[419189332,1775013051180,-1517.926247,0.0002925,7]
[419189333,1775013051191,-1517.926247,0.0002925,7]
[419189334,1775013051204,-304.136707,0.0002925,7]
[419189335,1775013051214,-173.654264,0.0002925,7]
[419189336,1775013051224,-1517.926247,0.0002925,7]
[419189337,1775013051234,-304.136707,0.0002925,7]
[419189338,1775013051244,-151.0,0.0002925,7]
[419189339,1775013051254,-173.654264,0.0002925,7]
[419189340,1775013051265,-304.136707,0.0002925,7]
[419189341,1775013051275,-151.0,0.0002925,7]
[419189342,1775013051284,-402.472625,0.0002925,7]
[419189343,1775013051294,-173.654264,0.0002925,7]
[419189344,1775013051304,-588.304032,0.0002925,7]
[419189345,1775013051314,-304.136707,0.0002925,7]
[419189346,1775013051324,-1313.53875,0.0002925,7]
[419189347,1775013051334,-151.0,0.0002925,7]
[419189348,1775013051344,-402.472625,0.0002925,7]
[419189349,1775013051354,-1216.398463,0.0002925,7]
[419189350,1775013051364,-173.654264,0.0002925,7]
[419189351,1775013051374,-588.304032,0.0002925,7]
[419189352,1775013051384,-1313.53875,0.0002925,7]
[419189353,1775013051394,-402.472625,0.0002925,7]
[419189354,1775013051405,-1216.398463,0.0002925,7]
[419189355,1775013051415,-588.304032,0.0002925,7]
[419189356,1775013051425,-1313.53875,0.0002925,7]
[419189357,1775013051434,-1663.831124,0.0002925,7]
[419189358,1775013051444,-3031.562776,0.0002925,7]
[419189359,1775013051455,-1927.168856,0.0002925,7]
[419189360,1775013051466,-1216.398463,0.0002925,7]
[419189361,1775013051475,-588.304032,0.0002925,7]
[419189362,1775013051485,-2476.167597,0.0002925,7]
[419189363,1775013051495,-157.626497,0.0002925,7]
[419189364,1775013051505,-1313.53875,0.0002925,7]
[419189365,1775013051515,-1663.831124,0.0002925,7]
[419189366,1775013051526,-1927.168856,0.0002925,7]
[419189367,1775013051537,-1216.398463,0.0002925,7]
[419189368,1775013051549,-3031.562776,0.0002925,7]
[419189369,1775013051560,-2476.167597,0.0002925,7]
[419189370,1775013051570,-157.626497,0.0002925,7]
[419189371,1775013051580,-1663.831124,0.0002925,7]
[419189372,1775013051592,-1927.168856,0.0002925,7]
[419189373,1775013051603,-3031.562776,0.0002925,7]
[419189374,1775013051613,-2476.167597,0.0002925,7]
[419189375,1775013051624,-157.626497,0.0002925,7]
[419189376,1775013051635,-1663.831124,0.0002925,7]
[419189377,1775013051645,-237.488442,0.0002925,7]
[419189378,1775013051656,-1927.168856,0.0002925,7]
[419189379,1775013051667,-3031.562776,0.0002925,7]
[419189380,1775013051678,-2476.167597,0.0002925,7]
[419189381,1775013051689,-157.626497,0.0002925,7]
[419189382,1775013051700,-237.488442,0.0002925,7]
[419189383,1775013051711,-428.732542,0.0002925,7]
[419189384,1775013051723,-1471.650873,0.0002925,7]
[419189385,1775013051735,-237.488442,0.0002925,7]